bitfinex/quotes_SOLUSD_20250622
["timestamp","ask_amount","ask_price","bid_price","bid_amount"]
[1750557256096,49.68434691,135.93,135.9,33.35823874]
[1750557256301,31.48,135.93,135.91,18.20434691]
[1750557257082,87.6,135.99,135.91,18.20434691]
[1750557257296,18.20434691,135.96,135.93,7.35672772]
[1750557258002,18.20434691,135.95,135.93,7.35672772]
[1750557258976,18.20434691,135.95,135.92,7.35726898]
[1750557260091,18.20434691,135.93,135.91,7.3576576]
[1750557260608,18.20434691,135.93,135.9,26.0]
[1750557260609,31.48,135.94,135.89,7.35837075]
[1750557260785,18.20434691,135.92,135.89,7.35837075]
[1750557260994,18.20434691,135.92,135.88,7.35943479]
[1750557261189,18.20434691,135.92,135.88,33.35943479]
[1750557262195,18.20434691,135.91,135.88,7.35943479]
[1750557262396,18.20434691,135.89,135.85,7.36105999]
[1750557262620,18.20434691,135.88,135.85,7.36105999]
[1750557262919,31.48,135.89,135.85,7.36105999]
[1750557262920,49.68434691,135.89,135.85,33.36105999]
[1750557263703,18.20434691,135.88,135.85,33.36105999]
[1750557265212,18.20434691,135.86,135.82,7.3626859]
[1750557265419,49.68434691,135.85,135.82,7.3626859]
[1750557266418,18.20434691,135.83,135.82,7.3626859]
[1750557266887,18.20434691,135.83,135.78,18.20434691]
[1750557267088,18.20434691,135.82,135.78,44.20434691]
[1750557267289,18.20434691,135.82,135.78,51.56920182]
[1750557267588,31.48,135.85,135.79,18.20434691]
[1750557267789,18.20434691,135.83,135.79,18.20434691]
[1750557268008,31.48,135.85,135.78,69.9813391]
[1750557268009,18.20434691,135.82,135.78,69.9813391]
[1750557268227,31.48,135.85,135.78,43.9813391]
[1750557268387,18.20434691,135.82,135.78,43.9813391]
[1750557268588,31.48,135.85,135.78,69.9813391]
[1750557268821,18.20434691,135.82,135.78,69.9813391]
[1750557269324,31.48,135.85,135.78,51.77699219]
[1750557269522,18.20434691,135.81,135.78,7.36485491]
[1750557269824,18.20434691,135.79,135.77,7.36534925]
[1750557270023,49.68434691,135.78,135.75,7.3664825]
[1750557271012,49.68434691,135.78,135.74,25.5713721]
[1750557271721,18.20434691,135.77,135.74,7.36702519]
[1750557272427,18.20434691,135.76,135.74,7.36702519]
[1750557272632,31.48,135.75,135.73,7.36744401]
[1750557273100,31.48,135.75,135.72,7.36811081]
[1750557274430,49.68434691,135.75,135.72,7.36811081]
[1750557274713,18.20434691,135.73,135.7,7.36919675]
[1750557275017,49.68434691,135.72,135.7,7.36919675]
[1750557275725,31.5,135.73,135.7,7.36919675]
[1750557276762,49.70434691,135.73,135.69,44.22373561]
[1750557276964,31.5,135.73,135.69,7.36973984]
[1750557277144,18.20434691,135.71,135.69,7.36973984]
[1750557277464,49.70434691,135.7,135.67,7.37082626]
[1750557278441,31.5,135.7,135.67,44.00223884]
[1750557278635,49.70434691,135.7,135.67,7.37082626]
[1750557279444,31.5,135.7,135.67,25.57517317]
[1750557279863,31.5,135.7,135.67,7.37082626]
[1750557280245,49.70434691,135.7,135.67,7.37082626]
[1750557280482,49.70434691,135.7,135.63,1.5994]
[1750557280483,18.20434691,135.68,135.6,7.37463126]
[1750557280658,18.20434691,135.63,135.6,7.37463126]
[1750557280979,31.5,135.63,135.6,33.37463126]
[1750557281847,49.70434691,135.63,135.6,7.37463126]
[1750557282074,49.70434691,135.63,135.59,7.37506732]
[1750557282448,18.20434691,135.6,135.57,7.37626318]
[1750557282648,49.70434691,135.59,135.54,25.58176559]
[1750557282846,31.5,135.58,135.54,51.58176559]
[1750557283051,31.5,135.58,135.56,18.20434691]
[1750557283264,31.5,135.6,135.56,18.20434691]
[1750557283575,31.5,135.6,135.56,44.20434691]
[1750557283952,31.5,135.6,135.57,25.58061009]
[1750557284364,31.5,135.6,135.59,18.20434691]
[1750557284572,31.5,135.62,135.6,26.0]
[1750557284881,18.20434691,135.61,135.52,1.6112]
[1750557285178,18.20434691,135.56,135.52,7.37898465]
[1750557285380,49.72434691,135.55,135.52,7.37898465]
[1750557285669,31.52,135.55,135.52,7.37898465]
[1750557285877,31.52,135.55,135.47,1.5789572]
[1750557286072,38.82,135.54,135.48,18.20434691]
[1750557286252,18.20434691,135.52,135.48,18.20434691]
[1750557286572,31.52,135.51,135.48,44.20434691]
[1750557286873,31.52,135.51,135.5,26.0]
[1750557287052,31.52,135.52,135.5,44.20434691]
[1750557287253,31.52,135.52,135.47,1.5789572]
[1750557287461,18.20434691,135.48,135.47,1.5789572]
[1750557287656,49.70434691,135.48,135.47,1.5789572]
[1750557288268,57.00434691,135.48,135.47,1.5789572]
[1750557289370,64.38551018,135.48,135.47,1.5789572]
[1750557289552,57.00434691,135.48,135.47,1.5789572]
[1750557290069,18.20434691,135.48,135.47,1.5789572]
[1750557290250,57.02434691,135.48,135.47,1.5789572]
[1750557291882,18.64964886,135.43,135.32,18.20434691]
[1750557292186,18.20434691,135.37,135.32,25.86461719]
[1750557292374,49.74434691,135.36,135.35,26.0]
[1750557292581,31.54,135.36,135.35,26.0]
[1750557293359,31.54,135.36,135.35,33.38825267]
[1750557293758,57.04434691,135.36,135.32,7.38944049]
[1750557293970,18.20434691,135.35,135.32,7.38944049]
[1750557294167,18.20434691,135.34,135.32,7.38944049]
[1750557294468,38.84,135.36,135.32,7.38944049]
[1750557294678,18.20434691,135.35,135.32,7.38944049]
[1750557294872,18.20434691,135.34,135.31,7.39040479]
[1750557295082,31.54,135.33,135.31,33.39040479]
[1750557295283,31.54,135.33,135.31,7.39040479]
[1750557295470,31.54,135.33,135.3,25.59532991]
[1750557295791,31.54,135.33,135.3,51.59532991]
[1750557296600,31.54,135.33,135.3,33.390983]
[1750557298101,18.20434691,135.32,135.3,33.390983]
[1750557298500,18.20434691,135.31,135.26,43.28669577]
[1750557298692,31.58,135.3,135.29,26.0]
[1750557299489,31.58,135.3,135.29,33.3915293]
[1750557299865,31.58,135.3,135.29,26.0]
[1750557300366,31.58,135.3,135.29,33.3915293]
[1750557301596,16.38289409,135.37,135.3,18.64964886]
[1750557301783,9.08289409,135.37,135.35,18.20434691]
[1750557301986,9.08289409,135.37,135.36,44.20434691]
[1750557302304,9.08289409,135.37,135.36,62.85399577]
[1750557302874,9.08289409,135.37,135.36,70.24170262]
[1750557305774,9.08289409,135.37,135.36,52.03735571]
[1750557305988,9.08289409,135.37,135.36,70.24170262]
[1750557307978,7.3,135.42,135.4,26.0]
[1750557308211,7.3,135.42,135.4,44.20434691]
[1750557308579,7.3,135.42,135.41,18.20434691]
[1750557308873,18.20434691,135.47,135.42,25.84551764]
[1750557309077,49.84434691,135.47,135.42,44.04986455]
[1750557312114,31.64,135.47,135.42,44.04986455]
[1750557312320,49.84434691,135.47,135.42,44.04986455]
[1750557312774,18.20434691,135.46,135.42,25.84551764]
[1750557314116,18.20434691,135.45,135.42,7.38443361]
[1750557314278,31.64,135.47,135.42,7.38443361]
[1750557314481,18.20434691,135.46,135.42,25.58878052]
[1750557315193,16.93580472,135.48,135.42,25.84551764]
[1750557315194,27.84015163,135.48,135.42,25.84551764]
[1750557315396,27.84015163,135.48,135.43,18.20434691]
[1750557315397,57.08434691,135.47,135.43,18.20434691]
[1750557316082,57.08434691,135.47,135.42,25.84551764]
[1750557316412,57.08434691,135.47,135.43,18.20434691]
[1750557317204,18.20434691,135.46,135.42,36.66543094]
[1750557317412,18.20434691,135.46,135.42,18.46108403]
[1750557318288,38.88,135.47,135.42,25.84551764]
[1750557318494,18.20434691,135.46,135.42,25.84551764]
[1750557320389,18.20434691,135.46,135.42,7.38443361]
[1750557322085,18.20434691,135.45,135.42,7.38443361]
[1750557322310,49.76434691,135.44,135.42,7.38443361]
[1750557322513,49.76434691,135.44,135.35,6.1957]
[1750557322684,18.20434691,135.42,135.37,18.20434691]
[1750557323002,18.20434691,135.42,135.4,26.0]
[1750557323503,57.08434691,135.41,135.37,7.38716111]
[1750557323685,18.20434691,135.39,135.37,7.38716111]
[1750557327008,31.56,135.4,135.37,7.38716111]
[1750557327195,49.76434691,135.4,135.37,7.38716111]
[1750557327392,18.20434691,135.38,135.36,33.38764849]
[1750557327811,49.76434691,135.37,135.34,26.0]
[1750557328011,18.20434691,135.36,135.35,26.0]
[1750557328712,18.20434691,135.36,135.33,7.38934456]
[1750557328913,18.20434691,135.36,135.33,33.38934456]
[1750557329419,49.76434691,135.37,135.33,51.59369147]
[1750557329617,31.56,135.39,135.36,26.0]
[1750557329790,49.76434691,135.39,135.36,26.0]
[1750557329990,31.56,135.39,135.36,26.0]
[1750557330300,38.9,135.39,135.36,26.0]
[1750557331121,9.35195329,135.42,135.36,26.0]
[1750557331122,9.35195329,135.42,135.38,18.20434691]
[1750557331690,9.35195329,135.42,135.39,18.20434691]
[1750557332910,9.35195329,135.42,135.41,26.0]
[1750557333110,9.35195329,135.42,135.41,33.38497895]
[1750557333446,38.88,135.43,135.41,33.38497895]
[1750557333937,7.32,135.43,135.41,51.58932586]
[1750557336228,7.32,135.43,135.42,18.20434691]
[1750557336742,18.20434691,135.47,135.42,25.58878052]
[1750557336944,57.08434691,135.46,135.42,7.38443361]
[1750557337155,38.88,135.46,135.42,25.58878052]
[1750557337463,18.20434691,135.48,135.43,18.20434691]
[1750557337621,38.88,135.47,135.43,18.20434691]
[1750557338216,7.32,135.47,135.45,18.20434691]
[1750557338425,7.32,135.47,135.44,18.20434691]
[1750557338922,7.32,135.47,135.45,7.38279808]
[1750557339626,18.20434691,135.49,135.45,7.38279808]
[1750557339855,31.56,135.48,135.45,7.38279808]
[1750557340155,31.56,135.47,135.44,7.38328204]
[1750557340371,7.32,135.48,135.45,18.20434691]
[1750557340538,38.88,135.48,135.45,18.20434691]
[1750557341238,38.88,135.48,135.46,7.38225306]
[1750557342854,38.88,135.48,135.46,25.58659997]
[1750557343169,38.88,135.48,135.46,7.38225306]
[1750557345061,27.62089055,135.5,135.45,44.04414019]
[1750557345263,31.56,135.49,135.46,18.20434691]
[1750557345561,48.29654364,135.5,135.46,18.20434691]
[1750557345750,48.29654364,135.5,135.47,18.20434691]
[1750557346346,18.20434691,135.49,135.45,7.38279808]
[1750557346563,31.56,135.48,135.47,26.0]
[1750557346877,31.56,135.48,135.47,33.38170812]
[1750557349967,49.76434691,135.48,135.46,26.0]
[1750557350356,31.56,135.48,135.46,26.0]
[1750557351571,31.56,135.48,135.47,7.38170812]
[1750557352969,31.54,135.48,135.47,7.38170812]
[1750557353741,49.74434691,135.48,135.46,33.38210324]
[1750557354143,31.54,135.48,135.46,33.38210324]
[1750557354869,31.54,135.47,135.46,33.38210324]
[1750557356960,49.74434691,135.47,135.4,18.46275066]
[1750557357160,18.20434691,135.46,135.41,25.58932586]
[1750557357367,31.54,135.45,135.44,26.0]
[1750557358152,25.50434691,135.48,135.44,26.0]
[1750557358476,31.54,135.47,135.44,44.20434691]
[1750557358966,31.54,135.47,135.45,7.38279808]
[1750557359158,31.54,135.47,135.45,25.58714499]
[1750557361655,7.3,135.48,135.45,25.83979328]
[1750557361897,18.20434691,135.46,135.39,24.59519993]
[1750557362185,18.20434691,135.43,135.39,36.66864684]
[1750557362488,31.54,135.43,135.42,26.0]
[1750557362983,49.74434691,135.43,135.42,26.0]
[1750557363358,49.74434691,135.43,135.42,33.38443361]
[1750557363786,31.54,135.43,135.42,33.38443361]
[1750557365093,31.54,135.43,135.42,51.58878052]
[1750557365253,31.54,135.45,135.42,51.58878052]
[1750557365673,31.54,135.45,135.42,33.38443361]
[1750557365876,49.74434691,135.45,135.42,33.38443361]
[1750557366858,31.54,135.45,135.42,33.38443361]
[1750557367380,49.74434691,135.45,135.42,33.38443361]
[1750557367880,31.54,135.45,135.42,33.38443361]
[1750557368276,49.74434691,135.45,135.42,33.38443361]
[1750557368488,18.20434691,135.43,135.4,26.0]
[1750557368660,31.54,135.42,135.41,26.0]
[1750557368861,31.54,135.42,135.41,33.38497895]
[1750557369699,31.54,135.42,135.39,7.38606987]
[1750557369904,18.20434691,135.4,135.36,7.38770685]
[1750557370113,31.54,135.4,135.36,44.06132089]
[1750557370394,31.54,135.4,135.37,44.20434691]
[1750557371099,31.54,135.4,135.38,25.59096236]
[1750557371810,31.54,135.4,135.38,7.38661545]
[1750557372781,18.20434691,135.39,135.37,26.0]
[1750557373208,18.20434691,135.39,135.35,7.38825267]
[1750557373520,31.54,135.38,135.37,26.0]
[1750557374274,49.74434691,135.38,135.35,33.38825267]
[1750557375803,18.20434691,135.36,135.32,7.38989062]
[1750557375995,49.74434691,135.35,135.32,7.38989062]
[1750557376306,49.74434691,135.35,135.32,33.38989062]
[1750557376809,18.20434691,135.34,135.32,33.38989062]
[1750557377005,18.20434691,135.34,135.31,7.39043677]
[1750557377320,18.20434691,135.32,135.28,7.39207569]
[1750557377611,18.20434691,135.3,135.25,7.39371534]
[1750557377789,31.54,135.3,135.26,18.20434691]
[1750557377994,31.54,135.3,135.26,44.20434691]
[1750557378192,31.54,135.3,135.26,26.0]
[1750557378380,49.74434691,135.3,135.26,26.0]
[1750557378721,49.74434691,135.3,135.25,44.0823506]
[1750557378722,18.20434691,135.27,135.21,7.39582798]
[1750557379019,18.20434691,135.25,135.21,33.39582798]
[1750557379208,49.74434691,135.24,135.21,33.39582798]
[1750557379405,31.54,135.24,135.21,33.39582798]
[1750557379709,49.74434691,135.24,135.21,33.39582798]
[1750557382202,18.20434691,135.23,135.21,33.39582798]
[1750557382410,25.92964886,135.29,135.2,1.5789572]
[1750557382411,49.76434691,135.22,135.2,1.5789572]
[1750557382611,57.06434691,135.21,135.2,1.5789572]
[1750557383181,65.96204957,135.21,135.14,7.39923619]
[1750557383376,18.20434691,135.17,135.14,7.39923619]
[1750557383605,31.56,135.16,135.14,7.39923619]
[1750557384610,18.20434691,135.2,135.15,36.85399577]
[1750557384821,31.56,135.19,135.16,44.20434691]
[1750557385040,6.5725,135.24,135.18,44.20434691]
[1750557385041,18.20434691,135.22,135.18,44.20434691]
[1750557385190,31.56,135.21,135.19,25.60134372]
[1750557385790,31.56,135.21,135.19,7.39699681]
[1750557386195,49.76434691,135.21,135.18,33.39751241]
[1750557387590,18.20434691,135.2,135.18,33.39751241]
[1750557387796,31.56,135.19,135.18,33.39751241]
[1750557387998,31.56,135.19,135.18,26.0]
[1750557389007,31.56,135.19,135.18,33.39754401]
[1750557389314,31.56,135.19,135.16,33.39863865]
[1750557392624,18.20434691,135.18,135.16,26.0]
[1750557392818,31.58,135.17,135.13,7.40028121]
[1750557393014,49.78434691,135.17,135.13,7.40028121]
[1750557393224,31.58,135.17,135.13,51.60462812]
[1750557394325,31.58,135.17,135.14,18.20434691]
[1750557394907,8.0306,135.21,135.14,18.20434691]
[1750557394908,18.20434691,135.21,135.16,51.60298556]
[1750557395112,31.58,135.19,135.16,33.39863865]
[1750557395605,31.58,135.19,135.16,51.60298556]
[1750557396738,31.58,135.19,135.16,70.09958218]
[1750557397110,31.58,135.19,135.16,33.39863865]
[1750557397311,31.58,135.19,135.16,51.60298556]
[1750557399135,31.58,135.19,135.17,18.20434691]
[1750557399343,38.88,135.22,135.18,36.85399577]
[1750557399635,38.88,135.22,135.19,18.20434691]
[1750557399808,38.88,135.22,135.2,18.20434691]
[1750557400212,38.88,135.22,135.18,18.64964886]
[1750557400213,38.88,135.22,135.19,18.20434691]
[1750557400431,38.88,135.22,135.21,18.20434691]
[1750557400834,38.88,135.22,135.2,11.03784922]
[1750557401235,38.88,135.22,135.21,7.39590266]
[1750557401719,31.58,135.22,135.21,7.39590266]
[1750557402218,31.58,135.22,135.16,36.99319325]
[1750557402219,42.61784922,135.22,135.16,18.64964886]
[1750557402546,31.58,135.22,135.18,11.03784922]
[1750557403039,31.58,135.22,135.18,37.05039345]
[1750557403249,49.98074459,135.22,135.19,7.39699681]
[1750557403579,31.58,135.22,135.19,33.39699681]
[1750557404439,49.98074459,135.22,135.19,33.39699681]
[1750557404738,31.58,135.22,135.19,33.39699681]
[1750557406435,18.40074459,135.2,135.13,18.40074459]
[1750557406653,49.98074459,135.19,135.14,18.40074459]
[1750557406857,7.3,135.18,135.16,18.40074459]
[1750557407057,31.58,135.21,135.19,26.0]
[1750557407374,31.58,135.21,135.2,25.79719429]
[1750557407591,31.58,135.23,135.2,25.79719429]
[1750557408078,31.58,135.27,135.23,26.0]
[1750557408278,31.58,135.27,135.24,18.40074459]
[1750557408868,27.35834459,135.3,135.25,18.40074459]
[1750557409055,31.58,135.29,135.25,18.40074459]
[1750557409468,31.58,135.29,135.26,7.39316871]
[1750557409774,31.58,135.29,135.27,18.40074459]
[1750557410160,31.58,135.29,135.26,25.7939133]
[1750557410362,7.3,135.3,135.27,18.40074459]
[1750557410666,7.3,135.3,135.29,18.40074459]
[1750557410989,31.58,135.33,135.29,18.40074459]
[1750557411175,18.40074459,135.3,135.26,7.39316871]
[1750557411385,31.62,135.29,135.26,7.39316871]
[1750557411585,18.40074459,135.29,135.25,26.0]
[1750557412470,50.02074459,135.3,135.25,44.40074459]
[1750557412782,50.02074459,135.3,135.25,51.79438846]
[1750557413146,50.02074459,135.3,135.26,18.40074459]
[1750557413350,31.62,135.3,135.26,18.40074459]
[1750557413694,31.62,135.3,135.28,18.40074459]
[1750557413994,31.6,135.32,135.28,18.40074459]
[1750557414778,31.6,135.32,135.3,7.390983]
[1750557415153,31.6,135.32,135.3,25.79172759]
[1750557415365,18.40074459,135.35,135.3,25.79172759]
[1750557415650,31.6,135.34,135.3,25.79172759]
[1750557415849,31.6,135.34,135.31,18.40074459]
[1750557416271,7.3,135.36,135.32,18.40074459]
[1750557416572,38.88,135.36,135.33,18.40074459]
[1750557416774,7.3,135.36,135.35,7.38825267]
[1750557418169,7.3,135.36,135.33,25.79008915]
[1750557418665,18.40074459,135.34,135.31,33.38994439]
[1750557418974,31.58,135.35,135.33,7.38934456]
[1750557419974,31.58,135.35,135.33,25.79008915]
[1750557420176,7.3,135.36,135.33,25.79008915]
[1750557420387,7.3,135.36,135.33,7.38934456]
[1750557420881,18.40074459,135.35,135.28,19.99856463]
[1750557421073,31.56,135.34,135.31,18.40074459]
[1750557421259,7.3,135.36,135.33,18.40074459]
[1750557421963,18.40074459,135.35,135.29,7.3915293]
[1750557422162,31.58,135.34,135.3,18.40074459]
[1750557422361,31.58,135.34,135.33,18.40074459]
[1750557422676,38.88,135.36,135.33,18.40074459]
[1750557422877,38.88,135.36,135.34,7.38879858]
[1750557423579,38.88,135.36,135.33,7.38931569]
[1750557424684,38.88,135.36,135.33,25.79006028]
[1750557425076,8.9253,135.42,135.36,26.0]
[1750557425285,18.40074459,135.4,135.36,44.40074459]
[1750557425460,7.28,135.42,135.38,18.40074459]
[1750557425784,38.96,135.42,135.38,18.40074459]
[1750557426779,38.96,135.42,135.39,7.38606987]
[1750557427392,18.40074459,135.41,135.38,7.38652066]
[1750557427577,18.40074459,135.4,135.38,7.38652066]
[1750557428186,18.40074459,135.41,135.38,7.38652066]
[1750557428767,18.40074459,135.41,135.37,7.38716111]
[1750557429476,18.40074459,135.38,135.36,26.0]
[1750557429676,50.06074459,135.37,135.34,26.0]
[1750557429994,31.64,135.37,135.34,26.0]
[1750557430977,31.64,135.37,135.34,33.38861055]
[1750557431269,50.04074459,135.37,135.35,26.0]
[1750557432871,31.64,135.37,135.35,26.0]
[1750557433296,31.64,135.37,135.35,33.38810175]
[1750557434222,87.6,135.41,135.35,33.38810175]
[1750557434382,18.40074459,135.42,135.37,18.40074459]
[1750557434581,18.40074459,135.4,135.35,51.78884634]
[1750557434981,49.98074459,135.41,135.35,70.25947803]
[1750557435181,49.98074459,135.41,135.36,18.40074459]
[1750557435478,18.40074459,135.4,135.36,18.40074459]
[1750557435696,18.40074459,135.4,135.35,70.25947803]
[1750557436210,18.40074459,135.39,135.35,33.38810175]
[1750557436377,31.56,135.38,135.35,33.38810175]
[1750557436700,31.56,135.38,135.35,51.78884634]
[1750557436902,31.56,135.38,135.35,70.25947803]
[1750557437986,49.96074459,135.38,135.35,51.85873344]
[1750557438903,49.96074459,135.38,135.35,33.38810175]
[1750557439108,18.40074459,135.37,135.35,33.38810175]
[1750557439971,49.96074459,135.38,135.35,33.38810175]
[1750557440998,31.56,135.38,135.35,70.25947803]
[1750557441177,31.56,135.38,135.36,18.40074459]
[1750557441378,31.56,135.38,135.37,7.38716111]
[1750557441696,49.94074459,135.4,135.37,7.38716111]
[1750557442601,49.94074459,135.4,135.36,7.38770685]
[1750557443505,18.64964886,135.36,135.26,18.40074459]
[1750557443714,18.40074459,135.32,135.26,18.40074459]
[1750557443887,18.40074459,135.3,135.25,25.79445993]
[1750557444078,31.54,135.29,135.26,26.0]
[1750557444480,31.54,135.29,135.25,25.79445993]
[1750557444682,49.94074459,135.29,135.26,26.0]
[1750557445195,18.40074459,135.27,135.26,26.0]
[1750557446390,18.40074459,135.28,135.27,26.0]
[1750557447089,31.54,135.29,135.27,26.0]
[1750557447410,18.40074459,135.28,135.27,26.0]
[1750557450397,18.40074459,135.29,135.27,33.39248277]
[1750557450607,31.56,135.28,135.27,33.39248277]
[1750557450783,31.56,135.28,135.27,52.04213163]
[1750557450989,31.56,135.29,135.27,52.04213163]
[1750557451209,18.40074459,135.31,135.27,52.04213163]
[1750557451210,31.56,135.3,135.27,52.04213163]
[1750557451509,49.96074459,135.3,135.27,52.04213163]
[1750557455215,8.0506,135.38,135.31,26.0]
[1750557455508,8.0506,135.38,135.3,26.0]
[1750557455509,18.40074459,135.32,135.3,26.0]
[1750557455813,57.50964886,135.37,135.3,26.0]
[1750557455814,49.96074459,135.31,135.3,26.0]
[1750557456580,49.96074459,135.31,135.28,26.0]
[1750557456785,18.40074459,135.29,135.26,7.39316871]
[1750557456992,31.56,135.29,135.26,7.39316871]
[1750557457289,31.56,135.29,135.28,26.0]
[1750557458917,49.96074459,135.29,135.28,26.0]
[1750557459713,31.56,135.29,135.28,33.39207569]
[1750557465314,49.96074459,135.29,135.28,33.39207569]
[1750557468813,18.40074459,135.29,135.28,33.39207569]
[1750557469023,31.56,135.3,135.28,33.39207569]
[1750557469229,49.96074459,135.3,135.28,33.39207569]
[1750557470138,18.40074459,135.29,135.28,33.39207569]
[1750557471605,18.40074459,135.29,135.28,26.0]
[1750557474341,18.40074459,135.29,135.27,7.39261015]
[1750557474521,49.96074459,135.28,135.27,7.39261015]
[1750557479434,49.96074459,135.28,135.22,7.39535571]
[1750557479632,18.40074459,135.24,135.22,7.39535571]
[1750557479833,49.96074459,135.24,135.23,26.0]
[1750557480007,31.56,135.24,135.22,7.39535571]
[1750557480208,18.40074459,135.23,135.22,7.39535571]
[1750557480424,18.40074459,135.23,135.19,7.39699681]
[1750557480737,49.96074459,135.22,135.21,26.0]
[1750557480931,49.94074459,135.22,135.14,44.29873192]
[1750557481131,18.40074459,135.17,135.14,25.89798733]
[1750557481443,18.40074459,135.16,135.14,7.3997336]
[1750557481625,31.54,135.17,135.13,15.52744089]
[1750557481940,18.40074459,135.16,135.15,26.0]
[1750557482453,49.94074459,135.22,135.17,18.64964886]
[1750557482652,49.94074459,135.22,135.18,26.0]
[1750557483031,49.94074459,135.22,135.2,26.0]
[1750557483246,31.54,135.22,135.21,7.39590266]
[1750557484460,49.94074459,135.22,135.21,7.39590266]
[1750557490974,31.56,135.26,135.24,26.0]
[1750557491477,25.68074459,135.28,135.24,44.40074459]
[1750557491777,31.56,135.27,135.24,26.0]
[1750557491944,31.56,135.27,135.24,44.40074459]
[1750557492275,38.84,135.28,135.25,18.64964886]
[1750557492957,38.84,135.28,135.26,7.39316871]
[1750557493961,7.28,135.28,135.27,7.39262216]
[1750557494467,31.56,135.3,135.27,25.87417756]
[1750557494641,49.96074459,135.3,135.27,25.87417756]
[1750557495144,18.40074459,135.28,135.27,7.39262216]
[1750557496059,18.40074459,135.28,135.27,26.0]
[1750557497344,49.94074459,135.28,135.23,7.39480884]
[1750557497565,18.40074459,135.26,135.24,26.0]
[1750557497767,49.94074459,135.26,135.23,7.39480884]
[1750557497947,18.40074459,135.25,135.23,7.39480884]
[1750557498269,31.54,135.26,135.23,7.39480884]
[1750557498487,49.94074459,135.26,135.24,26.0]
[1750557499285,18.40074459,135.25,135.24,33.39426205]
[1750557499458,31.54,135.26,135.24,33.39426205]
[1750557499982,49.94074459,135.26,135.24,33.39426205]
[1750557500341,18.40074459,135.25,135.24,33.39426205]
[1750557500777,49.94074459,135.26,135.24,33.39426205]
[1750557501146,31.54,135.26,135.24,33.39426205]
[1750557502152,49.94074459,135.26,135.24,33.39426205]
[1750557503070,31.54,135.26,135.24,33.39426205]
[1750557503377,49.94074459,135.26,135.24,33.39426205]
[1750557503548,18.40074459,135.25,135.24,33.39426205]
[1750557504542,18.40074459,135.25,135.22,7.39535571]
[1750557504742,18.40074459,135.23,135.21,44.48882547]
[1750557504949,18.40074459,135.23,135.21,7.39590266]
[1750557505151,18.40074459,135.22,135.21,7.39590266]
[1750557505884,49.94074459,135.22,135.21,7.39590266]
[1750557506452,31.54,135.22,135.21,7.39590266]
[1750557506764,31.54,135.22,135.21,33.39590266]
[1750557508375,49.94074459,135.22,135.21,33.39590266]
[1750557509284,31.54,135.22,135.21,7.39590266]
[1750557509487,49.94074459,135.22,135.2,7.39642893]
[1750557509689,18.40074459,135.21,135.19,33.39686343]
[1750557509978,18.40074459,135.2,135.19,33.39686343]
[1750557510383,31.54,135.2,135.17,7.39809129]
[1750557510557,18.40074459,135.22,135.18,37.05039345]
[1750557510758,49.94074459,135.23,135.19,7.39699681]
[1750557511987,49.94074459,135.23,135.19,25.88948885]
[1750557512196,18.40074459,135.22,135.19,25.88948885]
[1750557512869,31.54,135.23,135.19,25.88948885]
[1750557513255,49.94074459,135.23,135.19,25.88948885]
[1750557515358,31.54,135.23,135.19,25.88948885]
[1750557515562,49.94074459,135.23,135.19,25.88948885]
[1750557515983,31.54,135.23,135.2,44.64964886]
[1750557516166,18.40074459,135.24,135.2,44.64964886]
[1750557516367,31.62,135.25,135.2,63.05039345]
[1750557516682,50.02074459,135.25,135.2,63.05039345]
[1750557517258,50.02074459,135.25,135.21,7.39590266]
[1750557517458,18.40074459,135.24,135.21,7.39590266]
[1750557517659,31.62,135.25,135.21,7.39590266]
[1750557517859,18.40074459,135.24,135.21,7.39590266]
[1750557518085,18.40074459,135.22,135.21,7.39590266]
[1750557518589,18.40074459,135.22,135.19,26.0]
[1750557518761,18.40074459,135.2,135.16,18.49628265]
[1750557518960,50.10074459,135.21,135.19,26.0]
[1750557519177,31.7,135.21,135.19,26.0]
[1750557519373,50.10074459,135.21,135.19,33.3966486]
[1750557519895,18.40074459,135.2,135.19,33.3966486]
[1750557520867,18.40074459,135.2,135.17,18.64964886]
[1750557520868,31.7,135.21,135.17,7.39809129]
[1750557521068,50.10074459,135.21,135.17,26.04774015]